bitfinex/quotes_BTCUSD_20241117
["timestamp","ask_amount","ask_price","bid_price","bid_amount"]
[1731844182163,0.110279,90680.0,90679.0,0.01715319]
[1731844182381,0.13079464,90680.0,90679.0,0.01715319]
[1731844182629,0.02051564,90680.0,90672.0,0.04457731]
[1731844182860,0.110284,90675.0,90672.0,0.04457731]
[1731844183105,0.110284,90675.0,90673.0,0.03878256]
[1731844183313,0.22055,90682.0,90673.0,0.03877573]
[1731844183541,0.220541,90686.0,90676.0,0.1]
[1731844183542,0.02052933,90681.0,90676.0,0.1]
[1731844183760,0.110275,90683.0,90677.0,0.04593417]
[1731844184015,0.1308055,90682.0,90677.0,0.15957893]
[1731844184249,0.16534665,90689.0,90678.0,0.05280509]
[1731844184496,0.16534665,90689.0,90678.0,0.16308409]
[1731844184497,0.110273,90684.0,90678.0,0.16308409]
[1731844184714,0.02053245,90683.0,90679.0,0.110278]
[1731844184915,0.110273,90684.0,90679.0,0.00336513]
[1731844185373,0.02053339,90683.0,90679.0,0.11364213]
[1731844185599,0.110274,90683.0,90680.0,0.07554812]
[1731844186023,0.110275,90682.0,90681.0,0.00336103]
[1731844186232,0.110275,90682.0,90681.0,0.03707004]
[1731844186463,0.12473236,90682.0,90681.0,0.03707004]
[1731844186677,0.110272,90685.0,90681.0,0.00336103]
[1731844186886,0.02053521,90684.0,90681.0,0.00335966]
[1731844187092,0.110269,90687.0,90683.0,0.110274]
[1731844187300,0.110273,90684.0,90682.0,0.03051749]
[1731844187514,0.110273,90684.0,90683.0,0.05092575]
[1731844188413,0.110272,90685.0,90679.0,0.04535027]
[1731844188624,0.13080891,90684.0,90679.0,0.14535027]
[1731844188861,0.0008554,90689.0,90676.0,0.1479]
[1731844188862,0.0008554,90689.0,90680.0,0.27318663]
[1731844189219,0.0008554,90689.0,90680.0,0.210277]
[1731844189433,0.02053641,90688.0,90680.0,0.1]
[1731844189640,0.110273,90684.0,90681.0,0.15450201]
[1731844189852,0.220547,90684.0,90681.0,0.15450201]
[1731844190075,0.110275,90682.0,90681.0,0.15450201]
[1731844190290,0.110275,90682.0,90681.0,0.1]
[1731844190553,0.16534665,90683.0,90676.0,0.0479]
[1731844190767,0.110288,90672.0,90668.0,0.1]
[1731844191179,0.220543,90685.0,90671.0,0.110288]
[1731844191388,0.110282,90677.0,90672.0,0.06319426]
[1731844191614,0.0205404,90681.0,90674.0,0.1]
[1731844191822,0.10906255,90686.0,90674.0,0.1]
[1731844192029,0.110274,90683.0,90678.0,0.110279]
[1731844192278,0.220536,90688.0,90676.0,0.1]
[1731844192505,0.110273,90684.0,90677.0,0.110281]
[1731844192718,0.13081662,90683.0,90677.0,0.11028]
[1731844192982,0.16620205,90689.0,90678.0,0.0486772]
[1731844193204,0.102274,90683.0,90678.0,0.0486772]
[1731844193424,0.102274,90683.0,90679.0,0.00338544]
[1731844193655,0.220538,90687.0,90675.0,0.13422727]
[1731844193888,0.110276,90681.0,90680.0,0.00316428]
[1731844194391,0.02054369,90681.0,90667.0,0.005]
[1731844194588,0.220548,90683.0,90667.0,0.005]
[1731844194589,0.11029,90670.0,90667.0,0.005]
[1731844194817,0.24110418,90679.0,90668.0,0.05394945]
[1731844195029,0.0791,90687.0,90669.0,0.02249008]
[1731844195030,0.110291,90670.0,90669.0,0.02249008]
[1731844195240,0.110291,90670.0,90669.0,0.04731624]
[1731844195444,0.110291,90670.0,90669.0,0.05047778]
[1731844196286,0.110291,90670.0,90669.0,0.0279877]
[1731844197596,0.13084531,90670.0,90669.0,0.0279877]
[1731844198753,0.13084531,90670.0,90669.0,0.00316154]
[1731844198989,0.110293,90667.0,90666.0,0.04491122]
[1731844199412,0.110294,90666.0,90665.0,0.02223477]
[1731844199920,0.110296,90665.0,90664.0,0.0017108]
[1731844200125,0.23991103,90665.0,90664.0,0.0017108]
[1731844200378,0.16373275,90665.0,90664.0,0.0017108]
[1731844201273,0.16373738,90665.0,90664.0,0.0017108]
[1731844201691,0.13085038,90665.0,90664.0,0.0017108]
[1731844203544,0.13083138,90665.0,90664.0,0.0017108]
[1731844203771,0.13083138,90665.0,90664.0,0.0800108]
[1731844204170,0.13083138,90665.0,90664.0,0.08320433]
[1731844204860,0.02052926,90668.0,90667.0,0.110293]
[1731844205090,0.16534665,90677.0,90664.0,0.18320433]
[1731844205342,0.16534665,90677.0,90674.0,0.110284]
[1731844205563,0.0008555,90682.0,90665.0,0.11731852]
[1731844205564,0.110278,90680.0,90675.0,0.1134779]
[1731844205784,0.110278,90680.0,90675.0,0.0031949]
[1731844205996,0.110279,90679.0,90675.0,0.0031949]
[1731844206204,0.110279,90679.0,90676.0,0.03290338]
[1731844206648,0.0008555,90682.0,90677.0,0.22376088]
[1731844206859,0.0008555,90682.0,90681.0,0.110276]
[1731844207316,0.0008555,90682.0,90681.0,0.21342427]
[1731844207535,0.0008555,90682.0,90681.0,0.21562957]
[1731844207742,0.0008555,90682.0,90681.0,0.23074279]
[1731844208159,0.1048307,90691.0,90681.0,0.12046679]
[1731844208400,0.1048307,90691.0,90686.0,0.1]
[1731844208603,0.0008559,90693.0,90687.0,0.110268]
[1731844208811,0.0008559,90693.0,90687.0,0.15204266]
[1731844209031,0.110263,90692.0,90687.0,0.04177466]
[1731844209241,0.110263,90692.0,90687.0,0.15204266]
[1731844209470,0.0008559,90693.0,90689.0,0.110265]
[1731844209716,0.0008559,90693.0,90688.0,0.03793084]
[1731844210146,0.0008559,90693.0,90689.0,0.00315237]
[1731844210353,0.1111179,90693.0,90689.0,0.00315237]
[1731844210553,0.1111179,90693.0,90690.0,0.03290338]
[1731844210764,0.1111179,90693.0,90691.0,0.00314964]
[1731844210987,0.0008559,90693.0,90691.0,0.00314964]
[1731844211434,0.1111179,90693.0,90691.0,0.00314964]
[1731844211652,0.1111179,90693.0,90692.0,0.110263]
[1731844211653,0.0008559,90693.0,90692.0,0.110263]
[1731844211851,0.0008559,90693.0,90692.0,0.21170381]
[1731844212123,0.0008559,90693.0,90692.0,0.21485208]
[1731844213035,0.0008559,90693.0,90692.0,0.39315208]
[1731844217633,0.0008559,90693.0,90692.0,0.50721463]
[1731844218112,0.0008559,90693.0,90692.0,0.6576794]
[1731844218333,0.0008559,90693.0,90692.0,0.8741439]
[1731844218802,0.0008559,90693.0,90692.0,1.02239149]
[1731844219238,0.0008559,90693.0,90692.0,1.02039149]
[1731844219680,0.0008559,90693.0,90692.0,0.60602414]
[1731844220409,0.0008559,90693.0,90692.0,0.50721463]
[1731844220671,0.0008559,90693.0,90692.0,0.50221463]
[1731844220896,0.0008559,90693.0,90692.0,0.39315208]
[1731844221129,0.0008559,90693.0,90692.0,0.22694827]
[1731844221815,0.1111179,90693.0,90692.0,0.22694827]
[1731844222043,0.0008559,90693.0,90692.0,0.22694827]
[1731844222998,0.1111179,90693.0,90692.0,0.00314827]
[1731844223217,0.1031179,90693.0,90692.0,0.00314827]
[1731844223439,0.001712,90694.0,90691.0,0.0017108]
[1731844223668,0.110263,90692.0,90691.0,0.0017108]
[1731844224125,0.001712,90694.0,90691.0,0.01744395]
[1731844224346,0.001712,90694.0,90691.0,0.00481177]
[1731844224796,0.001712,90694.0,90691.0,0.0017108]
[1731844225034,0.111972,90694.0,90692.0,0.05088899]
[1731844225253,0.001712,90694.0,90692.0,0.05088899]
[1731844226166,0.111973,90694.0,90692.0,0.05088899]
[1731844226405,0.001712,90694.0,90692.0,0.05088899]
[1731844226640,0.001712,90694.0,90693.0,0.05287555]
[1731844227076,0.111972,90694.0,90693.0,0.05597652]
[1731844227518,0.111972,90694.0,90693.0,0.00310097]
[1731844227994,0.110263,90692.0,90691.0,0.0017108]
[1731844231164,0.001712,90694.0,90691.0,0.0017108]
[1731844231412,0.001712,90694.0,90692.0,0.02976219]
[1731844231854,0.110262,90693.0,90692.0,0.02976219]
[1731844232084,0.001712,90694.0,90692.0,0.02976219]
[1731844232320,0.001712,90694.0,90692.0,0.03080202]
[1731844232321,0.110262,90693.0,90692.0,0.03080202]
[1731844233732,0.001712,90694.0,90692.0,0.03080202]
[1731844233945,0.001712,90694.0,90692.0,0.00415047]
[1731844234186,0.110262,90693.0,90692.0,0.00415047]
[1731844234412,0.1111174,90693.0,90691.0,0.0017108]
[1731844234644,0.0008554,90693.0,90692.0,0.00415012]
[1731844234880,0.0008554,90693.0,90692.0,0.01916238]
[1731844235131,0.1111174,90693.0,90692.0,0.00415012]
[1731844235608,0.1111174,90693.0,90691.0,0.0017108]
[1731844235609,0.110263,90692.0,90691.0,0.0017108]
[1731844236936,0.0008554,90693.0,90691.0,0.0017108]
[1731844237387,0.0008554,90693.0,90692.0,0.21441312]
[1731844237610,0.0008554,90693.0,90692.0,0.37125908]
[1731844238277,0.0014224,90703.0,90699.0,0.110254]
[1731844238719,0.0014224,90703.0,90700.0,0.00397157]
[1731844238943,0.110251,90702.0,90701.0,0.01142256]
[1731844239435,0.110251,90702.0,90701.0,0.0153921]
[1731844239677,0.110251,90702.0,90701.0,0.01142256]
[1731844239898,0.110251,90702.0,90701.0,0.0153921]
[1731844240136,0.0014224,90703.0,90701.0,0.0153921]
[1731844240350,0.1116714,90703.0,90702.0,0.03461601]
[1731844240579,0.13220308,90703.0,90701.0,0.00396954]
[1731844240807,0.0014224,90703.0,90702.0,0.00378911]
[1731844241023,0.0014224,90703.0,90702.0,0.03724472]
[1731844241244,0.1116714,90703.0,90702.0,0.03345561]
[1731844241463,0.1116714,90703.0,90702.0,0.00378911]
[1731844242135,0.0014224,90703.0,90702.0,0.00378911]
[1731844242358,0.02195533,90703.0,90702.0,0.00378911]
[1731844242584,0.02195533,90703.0,90701.0,0.04377653]
[1731844242809,0.0014224,90703.0,90702.0,0.04124326]
[1731844243511,0.1116714,90703.0,90702.0,0.00378911]
[1731844243740,0.110252,90701.0,90700.0,0.04417075]
[1731844244183,0.110252,90701.0,90700.0,0.00378911]
[1731844244644,0.110252,90701.0,90696.0,0.1]
[1731844244854,0.110252,90701.0,90696.0,0.110258]
[1731844245070,0.110252,90701.0,90697.0,0.1]
[1731844245312,0.110252,90701.0,90697.0,0.10379215]
[1731844245593,0.1116724,90703.0,90697.0,0.10379215]
[1731844245805,0.0014224,90703.0,90699.0,0.220508]
[1731844246020,0.0014224,90703.0,90699.0,0.110254]
[1731844246244,0.0014224,90703.0,90702.0,0.110251]
[1731844246485,0.0014224,90703.0,90702.0,0.26205579]
[1731844246701,0.0014224,90703.0,90702.0,0.26583703]
[1731844246929,0.0014224,90703.0,90702.0,0.30723807]
[1731844247149,0.0014224,90703.0,90702.0,0.30503328]
[1731844249608,0.0014224,90703.0,90702.0,0.38313328]
[1731844252812,0.0014224,90703.0,90702.0,0.12843008]
[1731844253033,0.0014224,90703.0,90702.0,0.24088587]
[1731844253259,0.105375,90712.0,90706.0,0.110246]
[1731844253741,0.105375,90712.0,90707.0,0.00377822]
[1731844254634,0.0017138,90713.0,90707.0,0.00377822]
[1731844254863,0.0017138,90713.0,90709.0,0.110242]
[1731844255091,0.0017138,90713.0,90710.0,0.04084656]
[1731844255309,0.0017138,90713.0,90710.0,0.11401619]
[1731844255523,0.0017138,90713.0,90710.0,0.00377619]
[1731844255961,0.1119518,90713.0,90704.0,0.1]
[1731844256180,0.1119518,90713.0,90707.0,0.110244]
[1731844256611,0.0017138,90713.0,90708.0,0.110242]
[1731844256842,0.0017138,90713.0,90708.0,0.110243]
[1731844257073,0.0017138,90713.0,90709.0,0.15949757]
[1731844257324,0.0017138,90713.0,90712.0,0.110238]
[1731844257555,0.0017138,90713.0,90710.0,0.110241]
[1731844257778,0.0017138,90713.0,90712.0,0.110238]
[1731844258013,0.0017138,90713.0,90712.0,0.04902266]
[1731844258239,0.0017138,90713.0,90712.0,0.07116868]
[1731844261032,0.0017138,90713.0,90712.0,0.18140668]
[1731844262238,0.0017138,90713.0,90712.0,0.28140668]
[1731844262487,0.0017138,90713.0,90712.0,0.28361126]
[1731844262944,0.0017138,90713.0,90712.0,0.28140668]
[1731844263172,0.0017138,90713.0,90712.0,0.79512003]
[1731844263416,0.0017138,90713.0,90712.0,0.79505867]
[1731844263641,0.0017138,90713.0,90712.0,0.42981934]
[1731844263893,0.0017138,90713.0,90712.0,0.79497537]
[1731844264119,0.0017138,90713.0,90712.0,0.28140668]
[1731844265075,0.0017138,90713.0,90712.0,0.3803157]
[1731844265298,0.0017138,90713.0,90712.0,0.28140668]
[1731844266465,0.0017138,90713.0,90712.0,0.02214602]
[1731844266690,0.11024,90711.0,90707.0,0.09890804]
[1731844266922,0.0017138,90713.0,90705.0,0.19314806]
[1731844266923,0.0017138,90713.0,90705.0,0.04478599]
[1731844267154,0.110242,90710.0,90705.0,0.15503299]
[1731844267371,0.110242,90710.0,90705.0,0.110247]
[1731844267602,0.0017138,90713.0,90708.0,0.02194196]
[1731844267817,0.110239,90712.0,90708.0,0.02194196]
[1731844268036,0.110239,90712.0,90709.0,0.05359308]
[1731844268268,0.102239,90712.0,90709.0,0.05359308]
[1731844268498,0.0017138,90713.0,90709.0,0.16758861]
[1731844268719,0.0017138,90713.0,90709.0,0.05734661]
[1731844268720,0.1119508,90713.0,90709.0,0.05734661]
[1731844268939,0.1119508,90713.0,90710.0,0.05100286]
[1731844269158,0.0017138,90713.0,90710.0,0.05100286]
[1731844269372,0.2221898,90713.0,90711.0,0.00375252]
[1731844269586,0.110238,90712.0,90711.0,0.00375252]
[1731844269828,0.2221898,90713.0,90708.0,0.02194196]
[1731844270048,0.110238,90712.0,90711.0,0.00375151]
[1731844270268,0.220477,90712.0,90708.0,0.02194196]
[1731844270479,0.220477,90712.0,90711.0,0.00375151]
[1731844270696,0.330715,90712.0,90711.0,0.01376517]
[1731844270933,0.330715,90712.0,90711.0,0.01751668]
[1731844271185,0.0017138,90713.0,90708.0,0.02194196]
[1731844271186,0.110242,90709.0,90708.0,0.02194196]
[1731844271423,0.110242,90709.0,90705.0,0.0017122]
[1731844271691,0.110242,90709.0,90708.0,0.00375151]
[1731844271924,0.110239,90712.0,90708.0,0.03430455]
[1731844272159,0.110241,90711.0,90708.0,0.03805761]
[1731844272385,0.110241,90711.0,90709.0,0.05978435]
[1731844272607,0.1119518,90713.0,90709.0,0.05978435]
[1731844272830,0.0017138,90713.0,90709.0,0.05978435]
[1731844273044,0.110239,90712.0,90710.0,0.00375509]
[1731844273288,0.110239,90712.0,90711.0,0.02126357]
[1731844273501,0.0017138,90713.0,90711.0,0.02126357]
[1731844273765,0.110238,90712.0,90711.0,0.02501663]
[1731844273979,0.0017138,90713.0,90711.0,0.02501663]
[1731844274225,0.0017138,90713.0,90712.0,0.01081439]
[1731844274441,0.1119508,90713.0,90712.0,0.01081439]
[1731844274683,0.0017138,90713.0,90712.0,0.01081439]
[1731844274930,0.0017138,90713.0,90712.0,0.01456745]
[1731844275143,0.1119508,90713.0,90712.0,0.01456745]
[1731844275594,0.0017138,90713.0,90712.0,0.01081439]
[1731844275808,0.0017138,90713.0,90712.0,0.01456745]
[1731844276040,0.1119508,90713.0,90712.0,0.01456745]
[1731844277274,0.0017138,90713.0,90712.0,0.10906255]
[1731844277483,0.0017138,90713.0,90712.0,0.44800055]
[1731844277981,0.0017138,90713.0,90712.0,0.81685267]
[1731844278196,0.0017138,90713.0,90712.0,1.01466046]
[1731844279125,0.0017138,90713.0,90712.0,1.01464508]
[1731844279346,0.0017138,90713.0,90712.0,1.05850093]
[1731844279818,0.0017138,90713.0,90712.0,0.86069693]
[1731844280048,0.0017138,90713.0,90712.0,1.05849577]
[1731844280271,0.0017138,90713.0,90712.0,1.10795194]
[1731844280548,0.0017138,90713.0,90712.0,1.10794247]
[1731844280763,0.0017138,90713.0,90712.0,0.86069693]
[1731844282194,0.0001113,90736.0,90717.0,0.120232]
[1731844282459,0.0001113,90737.0,90734.0,0.005]
[1731844282689,0.0001113,90737.0,90736.0,0.35849396]
[1731844282919,0.0001113,90737.0,90736.0,0.77300976]
[1731844283173,0.15831345,90748.0,90737.0,0.1]
[1731844283388,0.15831345,90748.0,90739.0,0.09885343]
[1731844283611,0.000856,90751.0,90746.0,0.110196]
[1731844283824,0.000856,90751.0,90740.0,0.00371641]
[1731844284064,0.000856,90751.0,90747.0,0.003705]
[1731844284294,0.000856,90751.0,90741.0,0.06668557]
[1731844284548,0.110195,90748.0,90741.0,0.17317657]
[1731844284800,0.110195,90748.0,90742.0,0.1]
[1731844285020,0.110195,90748.0,90743.0,0.0523789]
[1731844285264,0.220385,90750.0,90743.0,0.1625789]
[1731844285265,0.330578,90750.0,90743.0,0.1625789]
[1731844285503,0.110193,90750.0,90744.0,0.110199]
[1731844285751,0.000856,90751.0,90745.0,0.06297357]
[1731844286190,0.110207,90738.0,90735.0,0.1]
[1731844286418,0.0815,90749.0,90729.0,0.1]
[1731844286419,0.220407,90742.0,90729.0,0.1]
[1731844286664,0.0815,90749.0,90734.0,0.210211]
[1731844286665,0.110205,90740.0,90734.0,0.210211]
[1731844286874,0.110205,90740.0,90735.0,0.04454995]
[1731844287101,0.220405,90742.0,90735.0,0.11021]
[1731844287362,0.220405,90742.0,90734.0,0.1]
[1731844287363,0.220407,90741.0,90734.0,0.1]
[1731844287611,0.220405,90742.0,90732.0,0.110213]
[1731844287612,0.220405,90742.0,90735.0,0.02329523]
[1731844287871,0.110205,90740.0,90735.0,0.02329523]
[1731844288085,0.22039,90748.0,90735.0,0.02329523]
[1731844288327,0.22039,90748.0,90736.0,0.0366057]
[1731844288542,0.2262155,90761.0,90736.0,0.0366057]
[1731844288543,0.220377,90754.0,90736.0,0.0366057]
[1731844288758,0.110199,90745.0,90738.0,0.110206]
[1731844288966,0.110199,90745.0,90739.0,0.07319379]
[1731844289234,0.110199,90745.0,90739.0,0.18339979]
[1731844289483,0.110204,90741.0,90739.0,0.07319379]
[1731844289699,0.16534665,90752.0,90739.0,0.07319379]
[1731844289921,0.110206,90739.0,90734.0,0.1]
[1731844290426,0.110206,90739.0,90735.0,0.00433321]
[1731844291131,0.0815,90755.0,90735.0,0.00433321]
[1731844291348,0.11019,90753.0,90736.0,0.00220398]
[1731844291570,0.110188,90754.0,90739.0,0.125]
[1731844291815,0.220364,90759.0,90740.0,0.220409]
[1731844291816,0.16534665,90758.0,90740.0,0.220409]
[1731844292035,0.16534665,90758.0,90750.0,0.110192]
[1731844292501,0.16534665,90758.0,90750.0,0.11449787]
[1731844292716,0.2212155,90761.0,90750.0,0.11449787]
[1731844292987,0.0008555,90761.0,90750.0,0.17002586]
[1731844293214,0.66115338,90782.0,90781.0,0.110155]
[1731844293433,0.66200958,90792.0,90783.0,0.110152]
[1731844293647,0.66200958,90792.0,90779.0,0.110157]
[1731844293648,0.0008562,90792.0,90779.0,0.110157]
[1731844293882,0.0008562,90792.0,90783.0,0.00354096]
[1731844294131,0.0008562,90792.0,90779.0,0.220313]
[1731844294377,0.110147,90788.0,90783.0,0.00352577]
[1731844294613,0.110149,90787.0,90777.0,0.1]
[1731844294849,0.110148,90787.0,90783.0,0.00352577]
[1731844295087,0.110144,90790.0,90783.0,0.02152964]
[1731844295322,0.0008562,90792.0,90783.0,0.02505541]
[1731844295573,0.0008562,90792.0,90783.0,0.16974465]
[1731844296015,0.0008562,90792.0,90791.0,0.110143]
[1731844296476,0.0008562,90792.0,90784.0,0.220303]
[1731844296696,0.0008562,90792.0,90791.0,0.11469416]
[1731844296925,0.0008562,90792.0,90791.0,0.13543024]
[1731844297143,0.0008562,90792.0,90791.0,0.1399814]
[1731844298294,0.0074215,90800.0,90791.0,0.0298384]
[1731844298539,0.0074215,90800.0,90799.0,0.110133]
[1731844299259,0.0074215,90800.0,90799.0,0.11468416]
[1731844299532,0.1175535,90800.0,90799.0,0.00455116]
[1731844299989,0.220266,90799.0,90792.0,0.01298384]
[1731844300232,0.0074215,90800.0,90793.0,0.01129838]
[1731844300445,0.0074215,90800.0,90793.0,0.0158565]
[1731844300693,0.110133,90799.0,90793.0,0.0158565]
[1731844300911,0.110135,90798.0,90793.0,0.0158565]
[1731844301136,0.110134,90799.0,90794.0,0.01158565]
[1731844301363,0.0074215,90800.0,90794.0,0.01158565]
[1731844301577,0.0074215,90800.0,90795.0,0.00455533]
[1731844301824,0.110137,90796.0,90795.0,0.00455533]
[1731844302066,0.110137,90796.0,90794.0,0.01158565]
[1731844302293,0.110137,90796.0,90795.0,0.02217307]
[1731844302546,0.110137,90796.0,90795.0,0.02672423]
[1731844303490,0.110137,90796.0,90795.0,0.00455116]
[1731844304635,0.110137,90796.0,90788.0,0.1]
[1731844304879,0.0074215,90800.0,90767.0,0.002]
[1731844304880,0.110148,90787.0,90781.0,0.02158253]
[1731844305098,0.110147,90788.0,90781.0,0.14535995]
[1731844305337,0.220281,90793.0,90779.0,0.110157]
[1731844305338,0.110148,90787.0,90779.0,0.110157]
[1731844305563,0.110147,90788.0,90780.0,0.0330472]
[1731844305780,0.220288,90790.0,90780.0,0.0330472]
[1731844305781,0.110148,90787.0,90780.0,0.0330472]
[1731844306038,0.110148,90787.0,90780.0,0.1432032]
[1731844306260,0.110147,90788.0,90781.0,0.03635182]
[1731844306502,0.110147,90788.0,90780.0,0.12232004]
[1731844306724,0.220266,90799.0,90780.0,0.12232004]
[1731844306725,0.110148,90787.0,90780.0,0.12232004]
[1731844306946,0.22247172,90798.0,90781.0,0.0452797]
[1731844307207,0.110159,90778.0,90772.0,0.1]
[1731844307455,0.110159,90778.0,90766.0,0.220346]
[1731844307456,0.0008557,90796.0,90773.0,0.04528419]
[1731844307704,0.0008557,90796.0,90753.0,0.09810152]
[1731844307705,0.005,90790.0,90754.0,0.220373]
[1731844307965,0.11626527,90789.0,90756.0,0.0452446]
[1731844308188,0.11626527,90789.0,90755.0,0.05660027]
[1731844308189,0.005,90785.0,90755.0,0.05660027]
[1731844308408,0.220347,90766.0,90756.0,0.04864059]
[1731844308638,0.110183,90758.0,90756.0,0.04864059]
[1731844308891,0.220351,90764.0,90756.0,0.04864059]
[1731844309101,0.220351,90764.0,90757.0,0.01458836]
[1731844309102,0.110181,90759.0,90757.0,0.01458836]
[1731844309317,0.01433827,90796.0,90757.0,0.01458836]
[1731844309606,0.110176,90764.0,90757.0,0.01458836]
[1731844309823,0.220315,90779.0,90757.0,0.01458836]
[1731844310040,0.110189,90753.0,90745.0,0.110198]
[1731844310260,0.440644,90776.0,90747.0,0.02205888]
[1731844310486,0.440644,90776.0,90743.0,0.0773]
[1731844310487,0.005,90772.0,90743.0,0.0773]
[1731844310703,0.110197,90747.0,90743.0,0.0773]
[1731844310961,0.005,90763.0,90734.0,0.0773]
[1731844311158,0.005,90763.0,90744.0,0.00432473]
[1731844311159,0.110198,90745.0,90744.0,0.00432473]
[1731844311392,0.220395,90747.0,90730.0,0.220432]
[1731844311604,0.110202,90743.0,90736.0,0.02221434]
[1731844311826,0.110202,90743.0,90736.0,0.13678798]
[1731844312050,0.10906255,90762.0,90736.0,0.02657898]
[1731844312051,0.220358,90761.0,90736.0,0.02657898]
[1731844312322,0.11126527,90760.0,90737.0,0.03589334]
[1731844312546,0.110207,90738.0,90737.0,0.03589334]
[1731844312784,0.110207,90738.0,90736.0,0.02657898]
[1731844312785,0.110209,90736.0,90735.0,0.0017114]
[1731844313038,0.110207,90738.0,90735.0,0.0017114]
[1731844313252,0.110208,90737.0,90735.0,0.0017114]
[1731844313480,0.110208,90737.0,90735.0,0.01290424]
[1731844313694,0.110208,90737.0,90736.0,0.00436778]
[1731844313917,0.110208,90737.0,90735.0,0.0017114]
[1731844314134,0.0488,90757.0,90736.0,0.11343033]
[1731844314357,0.005,90775.0,90745.0,0.0828]
[1731844314358,0.04425933,90766.0,90745.0,0.0828]
[1731844314588,0.220343,90768.0,90746.0,0.00220359]
[1731844314831,0.1702137,90779.0,90747.0,0.01307036]
[1731844315052,0.220338,90770.0,90748.0,0.14028215]
[1731844315284,0.110172,90767.0,90759.0,0.110181]
[1731844315498,0.110172,90767.0,90760.0,0.1432349]
[1731844315727,0.1652137,90779.0,90760.0,0.03739627]
[1731844315728,0.00220272,90768.0,90760.0,0.03739627]
[1731844316038,0.005,90775.0,90760.0,0.00434137]
[1731844316039,0.110175,90764.0,90760.0,0.00434137]
[1731844316449,0.110175,90764.0,90758.0,0.110182]
[1731844316450,0.110175,90764.0,90761.0,0.01145234]
[1731844316875,0.110174,90766.0,90759.0,0.110181]
[1731844317088,0.110174,90766.0,90762.0,0.0043344]
[1731844317299,0.110175,90765.0,90759.0,0.110181]
[1731844317513,0.110175,90765.0,90763.0,0.0043358]
[1731844317738,0.110175,90765.0,90758.0,0.110182]
[1731844317967,0.110176,90764.0,90758.0,0.110182]
[1731844318382,0.110176,90764.0,90757.0,0.220368]
[1731844318590,0.110176,90764.0,90759.0,0.110181]
[1731844318816,0.110174,90765.0,90758.0,0.0440745]
[1731844319030,0.220322,90777.0,90758.0,0.1542565]
[1731844319238,0.110175,90765.0,90759.0,0.04619344]
[1731844319861,0.220344,90767.0,90759.0,0.04790384]
[1731844320074,0.220346,90766.0,90759.0,0.04790384]
[1731844320297,0.110179,90762.0,90760.0,0.01201417]
[1731844320734,0.11018,90760.0,90759.0,0.0017104]
[1731844322591,0.21924255,90760.0,90759.0,0.0017104]
[1731844322798,0.22144527,90760.0,90759.0,0.0017104]
[1731844323445,0.22644527,90760.0,90759.0,0.0017104]
[1731844323668,0.11738272,90760.0,90759.0,0.0017104]
[1731844323874,0.04443043,90762.0,90759.0,0.0017104]
[1731844324089,0.04443043,90762.0,90759.0,0.01016144]
[1731844324305,0.22035,90765.0,90760.0,0.00412029]
[1731844324519,0.220338,90770.0,90760.0,0.00412029]
[1731844324722,0.0791,90782.0,90765.0,0.110174]
[1731844324723,0.110167,90772.0,90765.0,0.110174]
[1731844324948,0.110167,90772.0,90759.0,0.01016144]
[1731844324949,0.11126527,90781.0,90766.0,0.01244557]
[1731844325169,0.22032,90777.0,90766.0,0.00409592]
[1731844325377,0.22032,90777.0,90765.0,0.110173]
[1731844325378,0.110169,90770.0,90765.0,0.110173]
[1731844325593,0.220324,90775.0,90766.0,0.03406954]
[1731844325802,0.110172,90768.0,90766.0,0.03816267]
[1731844326256,0.110166,90772.0,90767.0,0.01483387]
[1731844326466,0.110167,90771.0,90767.0,0.01483387]
[1731844326674,0.110167,90771.0,90768.0,0.03794294]
[1731844326890,0.1652137,90788.0,90768.0,0.04203468]
[1731844326891,0.110169,90769.0,90768.0,0.04203468]
[1731844327108,0.110169,90769.0,90768.0,0.00409174]
[1731844327367,0.11237172,90769.0,90768.0,0.00409174]
[1731844327580,0.11018,90760.0,90759.0,0.0017104]
[1731844327795,0.110173,90767.0,90759.0,0.01016144]
[1731844328004,0.00220272,90766.0,90761.0,0.110178]
[1731844328216,0.110172,90767.0,90762.0,0.05610794]
[1731844328427,0.10906255,90776.0,90762.0,0.06020455]
[1731844328683,0.10906255,90776.0,90762.0,0.00409661]
[1731844329126,0.220324,90775.0,90759.0,0.01016144]
[1731844329331,0.10906255,90776.0,90763.0,0.00410509]
[1731844329543,0.110172,90767.0,90761.0,0.110178]
[1731844329743,0.110174,90765.0,90764.0,0.0041037]
[1731844329949,0.110174,90765.0,90759.0,0.12034244]
[1731844329950,0.110174,90765.0,90761.0,0.04251229]
[1731844330160,0.110174,90765.0,90764.0,0.00409243]
[1731844330372,0.220332,90772.0,90764.0,0.01584961]
[1731844330580,0.110173,90767.0,90764.0,0.01994204]
[1731844330792,0.220339,90770.0,90765.0,0.04408037]
[1731844331003,0.220339,90770.0,90764.0,0.01994204]
[1731844331234,0.220328,90774.0,90766.0,0.00409661]
[1731844331441,0.110168,90770.0,90764.0,0.12602461]
[1731844331667,0.11017,90769.0,90767.0,0.00410079]
[1731844331895,0.10906255,90776.0,90768.0,0.00409243]
[1731844331896,0.220332,90772.0,90768.0,0.00409243]
[1731844332112,0.005,90784.0,90768.0,0.00409243]
[1731844332355,0.3211297,90796.0,90769.0,0.0240298]
[1731844332356,0.005,90787.0,90769.0,0.0240298]
[1731844332581,0.110158,90779.0,90774.0,0.110162]
[1731844332809,0.220295,90788.0,90770.0,0.298336]
[1731844332810,0.110157,90780.0,90775.0,0.12358018]
[1731844333046,0.110158,90779.0,90775.0,0.01751579]
[1731844333299,0.110158,90779.0,90776.0,0.04500565]
[1731844333521,0.11016,90777.0,90776.0,0.04500565]
[1731844333764,0.11016,90777.0,90772.0,0.110165]
[1731844335356,0.110153,90783.0,90770.0,0.078]
[1731844335630,0.11015,90785.0,90780.0,0.110155]
[1731844335841,0.11015,90785.0,90771.0,0.2327401]
[1731844335842,0.220291,90789.0,90778.0,0.110157]
[1731844336078,0.110155,90781.0,90775.0,0.110162]
[1731844336302,0.110153,90783.0,90776.0,0.0670103]
[1731844336559,0.110157,90780.0,90774.0,0.110162]
[1731844336794,0.220291,90789.0,90780.0,0.110156]
[1731844337017,0.110149,90786.0,90776.0,0.330483]
[1731844337241,0.220293,90788.0,90777.0,0.22032]
[1731844337485,0.220293,90788.0,90778.0,0.110158]
[1731844337745,0.220293,90788.0,90776.0,0.03422921]